fUST/lending_fUST_20250417
["ID","MTS","AMOUNT","RATE_DAILY","PERIOD"]
[358189218,1744823447433,-536.47778986,0.00024657,2]
[358189220,1744823447443,-500.0,0.00024657,2]
[358189223,1744823447452,-500.0,0.00024657,2]
[358189225,1744823447462,-862.68,0.00024657,2]
[358189227,1744823447471,-500.0,0.00024657,2]
[358189229,1744823447481,-515.01,0.00024657,2]
[358189231,1744823447491,-500.0,0.00024657,2]
[358189233,1744823447501,-500.0,0.00024657,2]
[358189235,1744823447512,-500.0,0.00024657,2]
[358189237,1744823447522,-500.0,0.00024657,2]
[358189239,1744823447531,-582.72,0.00024657,2]
[358189241,1744823447541,-500.0,0.00024657,2]
[358189243,1744823447550,-500.0,0.00024657,2]
[358189245,1744823447560,-500.0,0.00024657,2]
[358189247,1744823447570,-500.0,0.00024657,2]
[358189249,1744823447579,-1017.62,0.00024657,2]
[358189251,1744823447590,-1567.48,0.00024657,2]
[358189253,1744823447600,-2417.1,0.00024657,2]
[358189255,1744823447609,-862.44,0.00024657,2]
[358189257,1744823447619,-500.0,0.00024657,2]
[358189260,1744823447630,-997.36,0.00024657,2]
[358189262,1744823447640,-559.68,0.00024657,2]
[358189264,1744823447649,-779.04,0.00024657,2]
[358189266,1744823447659,-496.18421815,0.00024657,2]
[358189310,1744823448071,-3.81578185,0.00024657,2]
[358189312,1744823448082,-500.0,0.00024657,2]
[358189314,1744823448093,-500.0,0.00024657,2]
[358189316,1744823448102,-500.0,0.00024657,2]
[358189318,1744823448112,-787.76,0.00024657,2]
[358189319,1744823448121,-500.0,0.00024657,2]
[358189320,1744823448132,-500.0,0.00024657,2]
[358189321,1744823448142,-500.0,0.00024657,2]
[358189322,1744823448152,-819.73,0.00024657,2]
[358189323,1744823448163,-500.0,0.00024657,2]
[358189324,1744823448173,-500.0,0.00024657,2]
[358189325,1744823448183,-986.05,0.00024657,2]
[358189326,1744823448193,-500.0,0.00024657,2]
[358189327,1744823448202,-500.0,0.00024657,2]
[358189328,1744823448212,-1464.62,0.00024657,2]
[358189329,1744823448221,-179.11901872,0.00024657,2]
[358189330,1744823448231,-847.22,0.00024657,2]
[358189331,1744823448241,-500.0,0.00024657,2]
[358189332,1744823448258,-500.0,0.00024657,2]
[358189334,1744823448268,-500.0,0.00024657,2]
[358189336,1744823448278,-500.0,0.00024657,2]
[358189338,1744823448290,-500.0,0.00024657,2]
[358189340,1744823448300,-340.71098847,0.00024657,2]
[358189342,1744823448309,-2216.82,0.00024657,2]
[358189344,1744823448320,-1167.56,0.00024657,2]
[358189346,1744823448331,-586.78,0.00024657,2]
[358189349,1744823448346,-1189.51387919,0.00024657,2]
[358189351,1744823448360,-87.25612081,0.00024657,2]
[358189353,1744823448370,-500.0,0.00024657,2]
[358189355,1744823448380,-500.0,0.00024657,2]
[358189357,1744823448390,-500.0,0.00024657,2]
[358189359,1744823448399,-1300.6,0.00024657,2]
[358189361,1744823448409,-710.82640003,0.00024657,2]
[358189426,1744823493219,1313.53,0.0001801,2]
[358189427,1744823908702,151.0,0.0001801,2]
[358189428,1744823956436,-238.82833732,0.0002,2]
[358189429,1744824102359,-465.95869095,0.0001999,2]
[358189434,1744824490934,-285.42281811,0.0001922,2]
[358189569,1744824633085,-130.12124868,0.0001922,2]
[358189571,1744824633100,-1047.9296579,0.00019564,2]
[358189574,1744824633113,-170.16356,0.00019611,2]
[358189576,1744824633129,-7455.61468807,0.0001999,2]
[358189579,1744824633153,-300.0,0.00019999,2]
[358189581,1744824633168,-300.0,0.00019999,2]
[358189584,1744824633182,-834.79231618,0.0002,2]
[358189586,1744824633206,-1000.0,0.00021024,2]
[358189589,1744824633226,-560.26701802,0.00021214,2]
[358189592,1744824633245,-500.0,0.000213,2]
[358189594,1744824633264,-115.84474432,0.000213,2]
[358189598,1744824633292,-384.15525568,0.000213,2]
[358189600,1744824633309,-500.0,0.000213,2]
[358189603,1744824633325,-500.0,0.000213,2]
[358189605,1744824633342,-500.0,0.000213,2]
[358189608,1744824633359,-500.0,0.000213,2]
[358189610,1744824633374,-500.0,0.000213,2]
[358189612,1744824633396,-500.0,0.000213,2]
[358189615,1744824633412,-500.31146044,0.000213,2]
[358189617,1744824633429,-500.0,0.000213,2]
[358189620,1744824633444,-500.0,0.000213,2]
[358189622,1744824633459,-500.0,0.000213,2]
[358189625,1744824633475,-500.0,0.000213,2]
[358189627,1744824633491,-500.0,0.000213,2]
[358189629,1744824633506,-500.0,0.000213,2]
[358189632,1744824633521,-500.0,0.000213,2]
[358189634,1744824633536,-500.0,0.000213,2]
[358189636,1744824633551,-500.0,0.000213,2]
[358189639,1744824633563,-500.0,0.000213,2]
[358189641,1744824633574,-500.0,0.000213,2]
[358189643,1744824633585,-500.0,0.000213,2]
[358189645,1744824633597,-500.0,0.000213,2]
[358189647,1744824633608,-500.0,0.000213,2]
[358189649,1744824633620,-500.0,0.000213,2]
[358189650,1744824633639,-420.0,0.00021777,2]
[358189653,1744824633653,-420.0,0.00021881,2]
[358189655,1744824633665,-256.68343808,0.00023,2]
[358189657,1744824633677,-328.0,0.00023712,2]
[358189659,1744824633689,-587.0,0.00023941,2]
[358189661,1744824633701,-1170.84411059,0.000245,5]
[358189663,1744824633713,-1170.84411051,0.000245,5]
[358189665,1744824633728,-1170.84411051,0.000245,5]
[358189667,1744824633740,-1170.84411051,0.000245,5]
[358189708,1744824634180,-1170.84411051,0.000245,5]
[358189713,1744824634223,-1170.84411051,0.000245,5]
[358189716,1744824634248,-14810.08402084,0.00024557,2]
[358189718,1744824634259,-22827.19451424,0.00024557,2]
[358189720,1744824634273,-114923.31839095,0.00024557,2]
[358189767,1744824638757,-403.19028049,0.00021115,2]
[358189769,1744824638770,-530.67,0.00021115,2]
[358189775,1744824638815,-108.27579449,0.00021115,2]
[358189777,1744824638825,-500.0,0.00021214,2]
[358189779,1744824638835,-500.0,0.00021214,2]
[358189781,1744824638844,-500.0,0.00021214,2]
[358189783,1744824638853,-1167.28442086,0.00021214,2]
[358189785,1744824638864,-500.0,0.00021214,2]
[358189787,1744824638874,-1167.28442086,0.00021214,2]
[358189789,1744824638883,-500.0,0.00021214,2]
[358189791,1744824638897,-162.06569317,0.00021214,2]
[358189793,1744824638907,-500.0,0.00021214,2]
[358189795,1744824638917,-1167.28442086,0.00021214,2]
[358189797,1744824638927,-500.0,0.00021214,2]
[358189798,1744824638937,-500.0,0.00021214,2]
[358189800,1744824638946,-1167.28442086,0.00021214,2]
[358189801,1744824638956,-500.0,0.00021214,2]
[358189803,1744824638966,-1167.28442086,0.00021214,2]
[358189805,1744824638977,-500.0,0.00021214,2]
[358189807,1744824638987,-1167.28442086,0.00021214,2]
[358189809,1744824638997,-500.0,0.00021214,2]
[358189811,1744824639007,-1167.28442086,0.00021214,2]
[358189813,1744824639017,-500.0,0.00021214,2]
[358189815,1744824639027,-1167.28442086,0.00021214,2]
[358189817,1744824639037,-500.0,0.00021214,2]
[358189819,1744824639047,-500.0,0.00021214,2]
[358189821,1744824639057,-1167.28442086,0.00021214,2]
[358189823,1744824639068,-500.0,0.00021214,2]
[358189825,1744824639079,-1167.28442086,0.00021214,2]
[358189827,1744824639089,-500.0,0.00021214,2]
[358189829,1744824639099,-1167.28442086,0.00021214,2]
[358189831,1744824639109,-500.0,0.00021214,2]
[358189833,1744824639119,-1167.28442086,0.00021214,2]
[358189835,1744824639129,-1167.28442086,0.00021214,2]
[358189838,1744824639142,-500.0,0.00021214,2]
[358189840,1744824639152,-1167.28442086,0.00021214,2]
[358189842,1744824639162,-1167.28442086,0.00021214,2]
[358189844,1744824639172,-479.20289871,0.00021214,2]
[358189845,1744824639182,-1167.28442086,0.00021214,2]
[358189847,1744824639193,-1167.28442086,0.00021214,2]
[358189849,1744824639202,-1167.28442086,0.00021214,2]
[358189851,1744824639213,-1167.28442086,0.00021214,2]
[358189853,1744824639223,-1167.28442086,0.00021214,2]
[358189855,1744824639233,-1167.28442086,0.00021214,2]
[358189857,1744824639243,-1167.28442086,0.00021214,2]
[358189859,1744824639253,-1167.28442086,0.00021214,2]
[358189861,1744824639262,-1167.28442086,0.00021214,2]
[358189863,1744824639273,-1167.28442086,0.00021214,2]
[358189865,1744824639284,-1167.28442086,0.00021214,2]
[358189867,1744824639293,-1167.28442086,0.00021214,2]
[358189869,1744824639303,-1167.28442086,0.00021214,2]
[358189871,1744824639314,-1167.28442086,0.00021214,2]
[358189873,1744824639324,-1167.28442086,0.00021214,2]
[358189875,1744824639334,-1167.28442086,0.00021214,2]
[358189877,1744824639343,-1167.28442086,0.00021214,2]
[358189879,1744824639353,-1167.28442086,0.00021214,2]
[358189881,1744824639363,-1167.28442086,0.00021214,2]
[358189883,1744824639373,-1167.28442086,0.00021214,2]
[358189885,1744824639383,-1167.28442086,0.00021214,2]
[358189887,1744824639397,-1167.28442086,0.00021214,2]
[358189889,1744824639407,-1167.28442086,0.00021214,2]
[358189891,1744824639416,-961.48599494,0.00021214,2]
[358189925,1744824639767,-205.79842592,0.00021214,2]
[358189927,1744824639777,-1167.28442086,0.00021214,2]
[358189929,1744824639787,-1167.28442086,0.00021214,2]
[358189931,1744824639796,-1167.28442086,0.00021214,2]
[358189933,1744824639805,-160.24141701,0.00021214,2]
[358189935,1744824639819,-1007.04300385,0.00021214,2]
[358189937,1744824639830,-530.96969235,0.00021214,2]
[358189940,1744824639842,-636.31472851,0.00021214,2]
[358189942,1744824639852,-1167.28442086,0.00021214,2]
[358189944,1744824639862,-1167.28442086,0.00021214,2]
[358189946,1744824639873,-1167.28442086,0.00021214,2]
[358189948,1744824639882,-1167.28442086,0.00021214,2]
[358189950,1744824639895,-1167.28442086,0.00021214,2]
[358189952,1744824639906,-1167.28442086,0.00021214,2]
[358189954,1744824639915,-240.59594221,0.00021214,2]
[358190046,1744824640978,-326.6000967,0.00021114,2]
[358190048,1744824640988,-926.68847865,0.00021214,2]
[358190050,1744824640997,-746.71142465,0.00021214,2]
[358190052,1744824641009,-420.57299621,0.00021214,2]
[358190054,1744824641018,-1147.83589483,0.00021214,2]
[358190056,1744824641030,-19.44852603,0.00021214,2]
[358190058,1744824641039,-492.92579086,0.00021214,2]
[358190083,1744824641268,-674.35863,0.00021214,2]
[358190085,1744824641278,-1167.28442086,0.00021214,2]
[358190087,1744824641287,-43274.48483921,0.0002199,2]
[358190089,1744824641297,-118567.90566776,0.00024557,2]
[358190343,1744824643856,-659.2907214,0.00024557,2]
[358190344,1744824643869,-98523.92599423,0.00024557,2]
[358190532,1744824646948,-14498.36471142,0.00024557,2]
[358190535,1744824646959,-1170.84411051,0.0002459,5]
[358190537,1744824646969,-151.0,0.000246,5]
[358190539,1744824646979,-176.69761266,0.00024656,2]
[358190541,1744824646988,-183.66314054,0.00024656,2]
[358190543,1744824646998,-500.0,0.00024657,2]
[358190545,1744824647008,-500.0,0.00024657,2]
[358190547,1744824647018,-1359.69,0.00024657,2]
[358190549,1744824647028,-500.0,0.00024657,2]
[358190551,1744824647037,-500.0,0.00024657,2]
[358190553,1744824647047,-500.0,0.00024657,2]
[358190555,1744824647058,-1037.23,0.00024657,2]
[358190557,1744824647068,-500.0,0.00024657,2]
[358190559,1744824647078,-500.0,0.00024657,2]
[358190561,1744824647088,-839.53,0.00024657,2]
[358190563,1744824647098,-1087.9,0.00024657,2]
[358190565,1744824647108,-500.0,0.00024657,2]
[358190567,1744824647117,-1804.01,0.00024657,2]
[358190569,1744824647127,-1804.01,0.00024657,2]
[358190571,1744824647137,-500.0,0.00024657,2]
[358190573,1744824647150,-356.38833606,0.00024657,2]
[358190575,1744824647160,-500.0,0.00024657,2]
[358190577,1744824647170,-500.0,0.00024657,2]
[358190579,1744824647179,-500.0,0.00024657,2]
[358190581,1744824647189,-244.86472793,0.00024657,2]
[358190583,1744824647199,-500.0,0.00024657,2]
[358190585,1744824647209,-500.0,0.00024657,2]
[358190587,1744824647219,-1324.07,0.00024657,2]
[358190589,1744824647229,-1019.76,0.00024657,2]
[358190591,1744824647239,-1019.76,0.00024657,2]
[358190593,1744824647249,-500.0,0.00024657,2]
[358190595,1744824647258,-1878.57688436,0.00024657,2]
[358190604,1744824647329,-4308.40311564,0.00024657,2]
[358190606,1744824647339,-2085.54,0.00024657,2]
[358190608,1744824647349,-307.74241038,0.00024657,2]
[358190610,1744824647359,-500.0,0.00024657,2]
[358190612,1744824647370,-1365.4,0.00024657,2]
[358190614,1744824647380,-549.96,0.00024657,2]
[358190616,1744824647390,-479.24195351,0.00024657,2]
[358190618,1744824647402,-871.91,0.00024657,2]
[358190621,1744824647412,-525.2,0.00024657,2]
[358190623,1744824647422,-500.0,0.00024657,2]
[358190625,1744824647431,-500.0,0.00024657,2]
[358190627,1744824647441,-500.0,0.00024657,2]
[358190629,1744824647452,-1789.67,0.00024657,2]
[358190631,1744824647461,-500.0,0.00024657,2]
[358190633,1744824647472,-419.99621758,0.00024657,2]
[358190635,1744824647482,-500.0,0.00024657,2]
[358190637,1744824647492,-500.0,0.00024657,2]
[358190639,1744824647502,-500.0,0.00024657,2]
[358190641,1744824647512,-513.27128983,0.00024657,2]
[358190643,1744824647522,-1243.32,0.00024657,2]
[358190645,1744824647532,-500.0,0.00024657,2]
[358190647,1744824647542,-3714.51,0.00024657,2]
[358190649,1744824647552,-500.0,0.00024657,2]
[358190651,1744824647562,-1429.58,0.00024657,2]
[358190653,1744824647572,-687.36,0.00024657,2]
[358190655,1744824647583,-500.0,0.00024657,2]
[358190657,1744824647593,-2386.11,0.00024657,2]
[358190659,1744824647603,-669.09,0.00024657,2]
[358190661,1744824647613,-500.0,0.00024657,2]
[358190663,1744824647624,-500.0,0.00024657,2]
[358190666,1744824647636,-500.0,0.00024657,2]
[358190668,1744824647667,-1088.12,0.00024657,2]
[358190669,1744824647679,-127.20804656,0.00024657,2]
[358190672,1744824647694,-428.40365535,0.00024657,2]
[358190674,1744824647704,-668.32,0.00024657,2]
[358190676,1744824647714,-521.51,0.00024657,2]
[358190678,1744824647725,-500.0,0.00024657,2]
[358190680,1744824647735,-2765.05869289,0.00024657,2]
[358190682,1744824647747,-2795.34130711,0.00024657,2]
[358190684,1744824647758,-659.42,0.00024657,2]
[358190686,1744824647769,-500.0,0.00024657,2]
[358190688,1744824647779,-774.99,0.00024657,2]
[358190690,1744824647789,-13.1724326,0.00024657,2]
[358190693,1744824647802,-486.8275674,0.00024657,2]
[358190695,1744824647811,-320.36089701,0.00024657,2]
[358190699,1744824647841,-179.63910299,0.00024657,2]
[358190701,1744824647851,-623.62,0.00024657,2]
[358190703,1744824647861,-500.0,0.00024657,2]
[358190705,1744824647872,-500.0,0.00024657,2]
[358190707,1744824647883,-500.0,0.00024657,2]
[358190709,1744824647893,-500.0,0.00024657,2]
[358190711,1744824647906,-500.0,0.00024657,2]
[358190714,1744824647916,-290.44089701,0.00024657,2]
[358190716,1744824647934,-209.55910299,0.00024657,2]
[358190718,1744824647945,-232.08686917,0.00024657,2]
[358191331,1744825239237,-614.82685372,0.00020914,3]
[358191332,1744825239261,-270.95635734,0.00021011,2]
[358191333,1744825239285,-592.11848894,0.00021014,2]
[358191334,1744825526301,-179.962086,0.00020085,2]
[358191335,1744825603666,174.5636727,0.00020085,2]
[358191336,1744825611021,15.0118873,0.00020912,2]
[358191337,1744825648686,-173.89430538,0.00018914,2]
[358191338,1744825685636,-180.03963523,0.00019876,2]
[358191339,1744825780288,-307.29823,0.00019876,2]
[358191340,1744825781374,-307.29823,0.00019876,2]
[358191341,1744825801704,-317.90685714,0.00019677,2]
[358191342,1744825806701,-317.90685714,0.00019677,2]
[358191406,1744825835380,-181.21267613,0.00019677,2]
[358191407,1744825835405,-25.63452407,0.00019876,2]
[358191448,1744825837937,-1436.88522029,0.00019876,2]
[358191450,1744825837949,-4259.03331561,0.00019876,2]
[358191451,1744825837960,-2773.58422653,0.00020044,2]
[358191452,1744825837972,-1269.08072737,0.00020044,2]
[358191453,1744825837982,-250.0,0.00020812,2]
[358191454,1744825837992,-212.28360498,0.00020912,2]
[358191455,1744825838002,-1165.65099825,0.00021,2]
[358191456,1744825838012,-784.64603896,0.00021006,2]
[358191457,1744825838028,-80.16378677,0.00021006,2]
[358191458,1744825838038,-260.53401874,0.00021007,2]
[358191459,1744825838048,-407.88151106,0.00021014,2]
[358191460,1744825838058,-151.0,0.00021102,2]
[358191461,1744825838287,-173.37225513,0.00021105,2]
[358191462,1744825838334,-126.62774487,0.00021105,2]
[358191463,1744825838344,-498.15170785,0.00021105,2]
[358191464,1744825838354,-185.16929688,0.00021105,2]
[358191465,1744825838364,-500.0,0.00021105,2]
[358191466,1744825838373,-500.0,0.00021105,2]
[358191467,1744825838383,-411.20996175,0.00021105,2]
[358191468,1744825838393,-500.0,0.00021105,2]
[358191469,1744825838403,-2284.6031963,0.00021105,2]
[358191470,1744825838413,-500.0,0.00021105,2]
[358191471,1744825838423,-62.78906635,0.00021105,2]
[358191472,1744825838457,-228.2005979,0.00021105,2]
[358191473,1744825838468,-576.42561276,0.00021105,2]
[358191474,1744825838478,-705.26567702,0.00021105,2]
[358191501,1744825840354,-1200.96,0.00021105,2]
[358191509,1744825840428,-378.37751928,0.00021105,2]
[358191511,1744825840438,-500.0,0.00021105,2]
[358191513,1744825840448,-577.50754702,0.00021105,2]
[358191515,1744825840458,-2284.6031963,0.00021105,2]
[358191517,1744825840468,-500.0,0.00021105,2]
[358191519,1744825840477,-2284.6031963,0.00021105,2]
[358191521,1744825840487,-500.0,0.00021105,2]
[358191523,1744825840496,-1176.387024,0.00021105,2]
[358191525,1744825840509,-1108.2161723,0.00021105,2]
[358191527,1744825840520,-500.0,0.00021105,2]
[358191529,1744825840530,-2284.6031963,0.00021105,2]
[358191531,1744825840540,-2284.6031963,0.00021105,2]
[358191533,1744825840551,-2284.6031963,0.00021105,2]
[358191535,1744825840561,-500.0,0.00021105,2]
[358191537,1744825840571,-2284.6031963,0.00021105,2]
[358191539,1744825840587,-500.0,0.00021105,2]
[358191541,1744825840598,-1411.2766445,0.00021105,2]
[358191791,1744825843008,-873.3265518,0.00021105,2]
[358191793,1744825843020,-2284.6031963,0.00021105,2]
[358191795,1744825843031,-2284.6031963,0.00021105,2]
[358191798,1744825843041,-2284.6031963,0.00021105,2]
[358191800,1744825843051,-2284.6031963,0.00021105,2]
[358191802,1744825843061,-2284.6031963,0.00021105,2]
[358191805,1744825843073,-2284.6031963,0.00021105,2]
[358191808,1744825843087,-2284.6031963,0.00021105,2]
[358191811,1744825843096,-1344.01607041,0.00021105,2]
[358192115,1744825846252,-940.58712589,0.00021105,2]
[358192117,1744825846262,-737.01264567,0.00021105,2]
[358192296,1744825860801,-289.02331945,0.00019776,2]
[358192297,1744825911443,202.815,0.0001801,2]
[358192298,1744825949891,-152.49188077,0.00019005,2]
[358192299,1744825968013,-160.0,0.00019005,2]
[358192300,1744826032735,-215.66694712,0.00019005,2]
[358192301,1744826032760,-221.36375288,0.00019776,2]
[358192302,1744826072674,-188.844,0.00019776,2]
[358192303,1744826106483,-269.83242,0.00019776,2]
[358192304,1744826164033,-30.93650767,0.00019776,2]
[358192305,1744826164064,-120.06349233,0.00019776,2]
[358192306,1744826229631,-30.93650767,0.00019776,2]
[358192307,1744826229654,-161.76488701,0.00019875,2]
[358192308,1744826249884,-138.23511299,0.00019875,2]
[358192309,1744826249910,-150.08752874,0.00019875,2]
[358192310,1744826284295,-176.05294263,0.00019005,2]
[358192311,1744826284331,-23.94705737,0.00019875,2]
[358192312,1744826289123,-200.0,0.00019676,2]
[358192313,1744826332216,-400.90087805,0.00019676,2]
[358192314,1744826347105,-272.47812038,0.00019676,2]
[358192315,1744826403656,-126.62100157,0.00019676,2]
[358192316,1744826403681,-123.37899843,0.00019875,2]
[358192317,1744826411603,-175.43706077,0.00019676,2]
[358192318,1744826463856,-151.0,0.00019676,2]
[358192319,1744826523323,-20.4593872,0.00019676,2]
[358192320,1744826523351,-130.5406128,0.00019676,2]
[358192321,1744826552909,-151.0,0.00019005,2]
[358192323,1744826583282,-142.42157105,0.00019005,2]
[358192324,1744826583309,-107.57842895,0.00019676,2]
[358192325,1744826645515,-160.0,0.00019676,2]
[358192326,1744826703079,-286.5351,0.00019479,2]
[358192327,1744826763306,-172.75972275,0.00019478,2]
[358192328,1744826794601,-127.24027725,0.00019478,2]
[358192329,1744826794625,-300.0,0.00019478,2]
[358192330,1744826794650,-454.71864816,0.00019478,2]
[358192331,1744826823160,-164.62627224,0.00019477,2]
[358192332,1744826851819,-135.37372776,0.00019477,2]
[358192333,1744826851845,-29.25254448,0.00019478,2]
[358192334,1744826882999,-207.62584017,0.000189,2]
[358192335,1744826883030,-57.81468531,0.00019477,2]
[358192336,1744826915866,-242.18531469,0.00019477,2]
[358192337,1744826915889,-274.60098621,0.00019477,2]
[358192338,1744826917022,-242.18531469,0.00019477,2]
[358192339,1744826917047,-213.32003548,0.00019477,2]
[358192340,1744826919227,-242.18531469,0.00019477,2]
[358192341,1744826971021,-300.0,0.00019476,2]
[358192342,1744826971045,-137.83734197,0.00019476,2]
[358192343,1744827004553,-162.16265803,0.00019476,2]
[358192344,1744827004603,-49.08028697,0.00019476,2]
[358192418,1744827032100,-250.91971303,0.00019476,2]
[358192420,1744827032111,-1196.26318459,0.00019477,2]
[358192422,1744827032122,-1963.51672091,0.00019477,2]
[358192426,1744827032156,-5831.78595118,0.00019477,2]
[358192427,1744827032166,-234.55963965,0.00019477,3]
[358192429,1744827032175,-44.49464983,0.00019477,2]
[358192431,1744827032185,-3965.91195638,0.00019477,2]
[358192433,1744827032195,-3965.91195638,0.00019477,2]
[358192436,1744827032205,-564.16750523,0.00019477,2]
[358192438,1744827032215,-3965.91195638,0.00019477,2]
[358192440,1744827032225,-3965.91195638,0.00019477,2]
[358192442,1744827032235,-3965.91195638,0.00019477,2]
[358192444,1744827032244,-3965.91195638,0.00019477,2]
[358192447,1744827032253,-3965.91195638,0.00019477,2]
[358192450,1744827032263,-72.70900876,0.00019477,2]
[358192465,1744827034919,-170.03587193,0.00019476,2]
[358192503,1744827038072,-191.7145387,0.00019476,2]
[358192505,1744827038083,-634.9699413,0.00019479,2]
[358192517,1744827038202,-8974.72416557,0.00019479,2]
[358192614,1744827040810,-300.0,0.00019479,2]
[358192645,1744827044399,-897.48492871,0.00019479,2]
[358192713,1744827045328,-8347.7,0.00019479,2]
[358192816,1744827046204,-381.27881693,0.00019476,2]
[358192818,1744827046216,-4406.48466082,0.00019479,2]
[358192820,1744827046228,-601.88095825,0.00019676,2]
[358192822,1744827046239,-1000.0,0.00019876,2]
[358192846,1744827046513,-471.6552766,0.00019876,2]
[358192849,1744827046545,-2279.5780727,0.00019876,2]
[358192851,1744827046559,-250.6305334,0.00019876,2]
[358192853,1744827046569,-179.962087,0.00019876,2]
[358192855,1744827046579,-735.4622754,0.00019979,2]
[358192857,1744827046589,-7872.2214766,0.0001999,2]
[358192860,1744827046599,-1791.78066084,0.0002,2]
[358192862,1744827046608,-1779.3636812,0.00020005,2]
[358192864,1744827046619,-500.0,0.0002014,2]
[358192865,1744827046628,-500.0,0.0002014,2]
[358192868,1744827046638,-500.0,0.0002014,2]
[358192870,1744827046648,-500.0,0.0002014,2]
[358192872,1744827046663,-500.0,0.0002014,2]
[358192873,1744827046672,-500.0,0.0002014,2]
[358192874,1744827046683,-500.0,0.0002014,2]
[358192875,1744827046693,-500.0,0.0002014,2]
[358192876,1744827046703,-500.0,0.0002014,2]
[358192877,1744827046713,-500.0,0.0002014,2]
[358192878,1744827046723,-500.0,0.0002014,2]
[358192879,1744827046733,-500.0,0.0002014,2]
[358192880,1744827046743,-500.0,0.0002014,2]
[358192881,1744827046755,-500.0,0.0002014,2]
[358192882,1744827046771,-152.0,0.00020247,2]
[358192883,1744827046782,-151.0,0.00020993,2]
[358192884,1744827046792,-151.0,0.00020993,2]
[358192885,1744827046802,-151.0,0.00020993,2]
[358192886,1744827046812,-151.0,0.00020993,2]
[358192887,1744827046823,-151.0,0.00021005,2]
[358192888,1744827046833,-153.118157,0.00021005,2]
[358192889,1744827046843,-10922.07573877,0.00021006,2]
[358192890,1744827046856,-51935.67479282,0.00021006,2]
[358195026,1744827070100,-410.71557779,0.00019476,2]
[358195029,1744827087947,-184.18834272,0.00019,2]
[358195030,1744827111165,-300.0,0.00019,2]
[358195031,1744827123944,-289.21674193,0.00019,2]
[358195032,1744827136445,-178.85903412,0.00019,2]
[358195033,1744827152749,-167.83662476,0.00019,2]
[358195034,1744827155091,-167.83662476,0.00018906,2]
[358195035,1744827182174,-21.26500301,0.00018906,2]
[358195036,1744827182199,-162.6129279,0.00019,2]
[358195037,1744827211473,-166.27937244,0.00019,2]
[358195038,1744827229086,-300.0,0.00018475,2]
[358195039,1744827242148,-198.24985608,0.00018475,2]
[358195040,1744827247557,-156.73245162,0.00018475,2]
[358195041,1744827263681,-196.35767872,0.00018475,2]
[358195042,1744827271833,-226.44490852,0.00018474,2]
[358195043,1744827302146,-273.55509148,0.00018474,2]
[358195044,1744827302170,-26.44490852,0.00018475,2]
[358195045,1744827331462,-22.77935996,0.00018475,2]
[358195046,1744827331484,-253.00695613,0.00019,2]
[358195047,1744827331507,-24.21368391,0.00019,2]
[358195048,1744827362027,-143.83938172,0.00019,2]
[358195049,1744827362051,-835.40012652,0.00019376,2]
[358195050,1744827362075,-425.65385122,0.00019377,2]
[358195051,1744827393413,-200.74523906,0.00019183,2]
[358195052,1744827393440,-65.51415565,0.00019377,2]
[358195053,1744827427661,-150.44773743,0.00019377,2]
[358195054,1744827451277,-213.875356,0.00019377,2]
[358195055,1744827481922,-144.5088997,0.00019377,2]
[358195056,1744827481950,-57.0111003,0.00019472,2]
[358195057,1744827513986,-181.47360631,0.00019471,2]
[358195058,1744827522219,-118.52639369,0.00019471,2]
[358195059,1744827522244,-45.91829515,0.00019471,2]
[358195060,1744827547051,-222.76029242,0.0001947,2]
[358195061,1744827576697,-77.23970758,0.0001947,2]
[358195062,1744827576722,-184.14043863,0.00019471,2]
[358195063,1744827583453,-205.07075549,0.0001947,2]
[358195064,1744827605634,-238.0,0.0001947,2]
[358195065,1744827628117,-151.0,0.00019462,2]
[358195066,1744827629152,-62.0,0.0001947,2]